[Event "Titled Tuesday Blitz October 11 Early 2022"]
[White "Fernandez Siles, Luis"]
[Black "Skliarov, Viktor"]
[WhiteFideId "2209420"]
[BlackFideId "14106736"]
[WhiteElo "2186"]
[BlackElo "2284"]
[Result "0-1"]
[Round "01"]
[TimeControl "180+1"]
[Date "2022.10.12"]
[WhiteClock "0:00:07"]
[BlackClock "0:00:49"]

1. e4 {[%clk 0:02:58]}  c5 {[%clk 0:02:54]} 2. Nf3 {[%clk 0:02:57]}  Nc6 {[%clk 0:02:54]} 3. d4 {[%clk 0:02:57]}  cxd4 {[%clk 0:02:53]} 4. Nxd4 {[%clk 0:02:58]}  Nf6 {[%clk 0:02:53]} 5. Nc3 {[%clk 0:02:58]}  e5 {[%clk 0:02:51]} 6. Ndb5 {[%clk 0:02:58]}  d6 {[%clk 0:02:50]} 7. Nd5 {[%clk 0:02:58]}  Nxd5 {[%clk 0:02:50]} 8. exd5 {[%clk 0:02:59]}  Nb8 {[%clk 0:02:51]} 9. c4 {[%clk 0:02:58]}  Be7 {[%clk 0:02:49]} 10. Bd3 {[%clk 0:02:58]}  a6 {[%clk 0:02:49]} 11. Nc3 {[%clk 0:02:57]}  O-O {[%clk 0:02:49]} 12. O-O {[%clk 0:02:57]}  Nd7 {[%clk 0:02:47]} 13. Kh1 {[%clk 0:02:48]}  f5 {[%clk 0:02:45]} 14. f3 {[%clk 0:02:46]}  Bg5 {[%clk 0:02:38]} 15. b4 {[%clk 0:02:41]}  a5 {[%clk 0:02:37]} 16. a3 {[%clk 0:02:37]}  axb4 {[%clk 0:02:28]} 17. Bxg5 {[%clk 0:02:35]}  Qxg5 {[%clk 0:02:29]} 18. axb4 {[%clk 0:02:35]}  Rxa1 {[%clk 0:02:28]} 19. Qxa1 {[%clk 0:02:36]}  Qe3 {[%clk 0:02:16]} 20. Be2 {[%clk 0:02:30]}  e4 {[%clk 0:02:09]} 21. fxe4 {[%clk 0:02:00]}  fxe4 {[%clk 0:02:08]} 22. Rxf8+ {[%clk 0:01:56]}  Nxf8 {[%clk 0:02:07]} 23. Qb2 {[%clk 0:01:47]}  Bg4 {[%clk 0:01:46]} 24. h3 {[%clk 0:01:37]}  Bxe2 {[%clk 0:01:44]} 25. Nxe2 {[%clk 0:01:37]}  Qd3 {[%clk 0:01:43]} 26. Nd4 {[%clk 0:01:16]}  Qxc4 {[%clk 0:01:36]} 27. Ne2 {[%clk 0:00:16]}  Qxd5 {[%clk 0:01:32]} 28. Qc2 {[%clk 0:00:16]}  Qd3 {[%clk 0:01:14]} 29. Qa2+ {[%clk 0:00:15]}  d5 {[%clk 0:01:14]} 30. Nc3 {[%clk 0:00:12]}  Qxc3 {[%clk 0:01:11]} 31. Qxd5+ {[%clk 0:00:13]}  Kh8 {[%clk 0:01:11]} 32. Qxe4 {[%clk 0:00:10]}  Qc6 {[%clk 0:00:53]} 33. Qe7 {[%clk 0:00:10]}  Kg8 {[%clk 0:00:52]} 34. h4 {[%clk 0:00:09]}  Qd7 {[%clk 0:00:50]} 35. Qe4 {[%clk 0:00:08]}  Ne6 {[%clk 0:00:48]} 36. h5 {[%clk 0:00:07]}  Qc6 {[%clk 0:00:46]} 37. Qf5 {[%clk 0:00:07]}  Qc1+ {[%clk 0:00:46]} 38. Kh2 {[%clk 0:00:06]}  Qf4+ {[%clk 0:00:47]} 39. Qxf4 {[%clk 0:00:06]}  Nxf4 {[%clk 0:00:48]} 40. Kg3 {[%clk 0:00:06]}  Nxh5+ {[%clk 0:00:48]} 41. Kf3 {[%clk 0:00:07]}  Kf7 {[%clk 0:00:48]} 42. Ke4 {[%clk 0:00:08]}  Ke6 {[%clk 0:00:48]} 43. Kd4 {[%clk 0:00:07]}  Kd6 {[%clk 0:00:49]} 0-1


[Site "https://www.chess.com"]

[Event "Titled Tuesday Blitz October 11 Early 2022"]
[White "Gareyev, Timur"]
[Black "Deuer, Marius"]
[WhiteFideId "14200937"]
[BlackFideId "16236432"]
[WhiteElo "2552"]
[BlackElo "2226"]
[Result "1-0"]
[Round "01"]
[TimeControl "180+1"]
[Date "2022.10.12"]
[WhiteClock "0:00:48"]
[BlackClock "0:00:06"]

1. c4 {[%clk 0:02:44]}  e5 {[%clk 0:02:53]} 2. g3 {[%clk 0:02:43]}  c6 {[%clk 0:02:50]} 3. Nf3 {[%clk 0:02:38]}  e4 {[%clk 0:02:50]} 4. Nd4 {[%clk 0:02:37]}  d5 {[%clk 0:02:50]} 5. cxd5 {[%clk 0:02:37]}  Qxd5 {[%clk 0:02:50]} 6. Nc2 {[%clk 0:02:37]}  Nf6 {[%clk 0:02:50]} 7. Nc3 {[%clk 0:02:37]}  Qh5 {[%clk 0:02:20]} 8. Bg2 {[%clk 0:02:35]}  Qg6 {[%clk 0:02:16]} 9. Ne3 {[%clk 0:02:26]}  Bc5 {[%clk 0:02:13]} 10. Qc2 {[%clk 0:02:26]}  Bxe3 {[%clk 0:02:12]} 11. fxe3 {[%clk 0:02:26]}  Bf5 {[%clk 0:02:12]} 12. b3 {[%clk 0:02:24]}  O-O {[%clk 0:02:11]} 13. Ba3 {[%clk 0:02:23]}  Re8 {[%clk 0:02:09]} 14. Rf1 {[%clk 0:02:15]}  Nbd7 {[%clk 0:02:05]} 15. Rf4 {[%clk 0:02:11]}  Qh5 {[%clk 0:01:38]} 16. Rh4 {[%clk 0:02:09]}  Qg5 {[%clk 0:01:38]} 17. Bd6 {[%clk 0:01:48]}  Ne5 {[%clk 0:00:35]} 18. O-O-O {[%clk 0:01:07]}  Ng6 {[%clk 0:00:33]} 19. Bf4 {[%clk 0:01:04]}  Nxf4 {[%clk 0:00:32]} 20. Rxf4 {[%clk 0:01:00]}  Nd5 {[%clk 0:00:29]} 21. Nxd5 {[%clk 0:00:54]}  cxd5 {[%clk 0:00:06]} 22. Qb2 {[%clk 0:00:54]}  Rac8+ {[%clk 0:00:06]} 23. Kb1 {[%clk 0:00:54]}  Be6 {[%clk 0:00:06]} 24. Qd4 {[%clk 0:00:48]} 1-0


[Site "https://www.chess.com"]

[Event "Titled Tuesday Blitz October 11 Early 2022"]
[White "Goryachkina, Aleksandra"]
[Black "Podetti, Davide"]
[WhiteFideId "4147103"]
[BlackFideId "893617"]
[WhiteElo "2484"]
[BlackElo "2160"]
[Result "1/2-1/2"]
[Round "01"]
[TimeControl "180+1"]
[Date "2022.10.12"]
[WhiteClock "0:00:06"]
[BlackClock "0:00:21"]

1. e4 {[%clk 0:02:59]}  e5 {[%clk 0:02:59]} 2. Nf3 {[%clk 0:02:59]}  Nc6 {[%clk 0:02:59]} 3. Bc4 {[%clk 0:02:58]}  Bc5 {[%clk 0:02:59]} 4. O-O {[%clk 0:02:51]}  Nf6 {[%clk 0:02:58]} 5. d3 {[%clk 0:02:51]}  d6 {[%clk 0:02:57]} 6. a4 {[%clk 0:02:49]}  a6 {[%clk 0:02:57]} 7. c3 {[%clk 0:02:47]}  O-O {[%clk 0:02:53]} 8. Nbd2 {[%clk 0:02:41]}  h6 {[%clk 0:02:52]} 9. h3 {[%clk 0:02:40]}  Be6 {[%clk 0:02:51]} 10. Re1 {[%clk 0:02:33]}  Ba7 {[%clk 0:02:49]} 11. Qc2 {[%clk 0:02:21]}  Re8 {[%clk 0:02:47]} 12. Bxe6 {[%clk 0:02:19]}  Rxe6 {[%clk 0:02:44]} 13. Nc4 {[%clk 0:02:12]}  d5 {[%clk 0:02:40]} 14. exd5 {[%clk 0:02:11]}  Qxd5 {[%clk 0:02:41]} 15. Ne3 {[%clk 0:01:36]}  Bxe3 {[%clk 0:02:40]} 16. Bxe3 {[%clk 0:01:36]}  Rae8 {[%clk 0:02:38]} 17. Rad1 {[%clk 0:01:34]}  Qd7 {[%clk 0:02:11]} 18. b4 {[%clk 0:01:20]}  Nd5 {[%clk 0:02:02]} 19. b5 {[%clk 0:01:15]}  axb5 {[%clk 0:01:55]} 20. axb5 {[%clk 0:01:15]}  Nce7 {[%clk 0:01:54]} 21. c4 {[%clk 0:01:14]}  Nxe3 {[%clk 0:01:50]} 22. fxe3 {[%clk 0:01:01]}  Ng6 {[%clk 0:01:44]} 23. Kh1 {[%clk 0:00:56]}  Qe7 {[%clk 0:01:34]} 24. Ra1 {[%clk 0:00:49]}  e4 {[%clk 0:01:27]} 25. Nd4 {[%clk 0:00:37]}  exd3 {[%clk 0:01:25]} 26. Qxd3 {[%clk 0:00:37]}  Rxe3 {[%clk 0:01:23]} 27. Rxe3 {[%clk 0:00:37]}  Qxe3 {[%clk 0:01:24]} 28. Qxe3 {[%clk 0:00:37]}  Rxe3 {[%clk 0:01:24]} 29. Ra8+ {[%clk 0:00:35]}  Kh7 {[%clk 0:01:24]} 30. Ra7 {[%clk 0:00:27]}  Re4 {[%clk 0:01:16]} 31. Nf5 {[%clk 0:00:23]}  Rxc4 {[%clk 0:01:14]} 32. Rxb7 {[%clk 0:00:22]}  Nf4 {[%clk 0:01:09]} 33. b6 {[%clk 0:00:14]}  cxb6 {[%clk 0:01:09]} 34. Rxf7 {[%clk 0:00:08]}  Kg6 {[%clk 0:01:00]} 35. Rf8 {[%clk 0:00:08]}  Rc1+ {[%clk 0:00:59]} 36. Kh2 {[%clk 0:00:09]}  Ne6 {[%clk 0:00:53]} 37. Ne7+ {[%clk 0:00:07]}  Kh7 {[%clk 0:00:53]} 38. Rf7 {[%clk 0:00:06]}  Nc5 {[%clk 0:00:48]} 39. Nf5 {[%clk 0:00:04]}  Kg6 {[%clk 0:00:47]} 40. Rf8 {[%clk 0:00:04]}  Rc2 {[%clk 0:00:40]} 41. Ne7+ {[%clk 0:00:04]}  Kh7 {[%clk 0:00:40]} 42. Rb8 {[%clk 0:00:04]}  Ne6 {[%clk 0:00:34]} 43. Rxb6 {[%clk 0:00:03]}  Nf4 {[%clk 0:00:34]} 44. Kg3 {[%clk 0:00:04]}  g5 {[%clk 0:00:29]} 45. Nf5 {[%clk 0:00:04]}  Rxg2+ {[%clk 0:00:19]} 46. Kf3 {[%clk 0:00:04]}  Rh2 {[%clk 0:00:20]} 47. Rxh6+ {[%clk 0:00:04]}  Kg8 {[%clk 0:00:20]} 48. Kg4 {[%clk 0:00:04]}  Rg2+ {[%clk 0:00:20]} 49. Kf3 {[%clk 0:00:05]}  Rh2 {[%clk 0:00:21]} 50. Kg4 {[%clk 0:00:05]}  Rg2+ {[%clk 0:00:20]} 51. Kf3 {[%clk 0:00:06]}  Rh2 {[%clk 0:00:21]} 1/2-1/2


[Site "https://www.chess.com"]

[Event "Titled Tuesday Blitz October 11 Early 2022"]
[White "Guerrero Olmos, Sergio"]
[Black "Dilmukhametov, Artur"]
[WhiteFideId "2257238"]
[BlackFideId "24179922"]
[WhiteElo "2272"]
[BlackElo "2197"]
[Result "1-0"]
[Round "01"]
[TimeControl "180+1"]
[Date "2022.10.12"]
[WhiteClock "0:01:43"]
[BlackClock "0:00:11"]

1. d4 {[%clk 0:02:59]}  Nf6 {[%clk 0:02:59]} 2. Nf3 {[%clk 0:02:59]}  g6 {[%clk 0:02:58]} 3. Bf4 {[%clk 0:03:00]}  Bg7 {[%clk 0:02:57]} 4. e3 {[%clk 0:03:00]}  O-O {[%clk 0:02:57]} 5. Be2 {[%clk 0:03:01]}  d6 {[%clk 0:02:56]} 6. h3 {[%clk 0:03:01]}  Nbd7 {[%clk 0:02:55]} 7. O-O {[%clk 0:03:00]}  c5 {[%clk 0:02:54]} 8. c3 {[%clk 0:03:00]}  cxd4 {[%clk 0:02:05]} 9. exd4 {[%clk 0:02:59]}  Re8 {[%clk 0:01:53]} 10. Nbd2 {[%clk 0:02:52]}  Nh5 {[%clk 0:01:52]} 11. Bh2 {[%clk 0:02:52]}  e5 {[%clk 0:01:50]} 12. Nc4 {[%clk 0:02:52]}  exd4 {[%clk 0:01:43]} 13. Nxd4 {[%clk 0:02:48]}  Ne5 {[%clk 0:01:38]} 14. Nb5 {[%clk 0:02:43]}  d5 {[%clk 0:01:30]} 15. Ncd6 {[%clk 0:02:31]}  Re7 {[%clk 0:01:22]} 16. Bxh5 {[%clk 0:02:30]}  gxh5 {[%clk 0:01:19]} 17. Qxh5 {[%clk 0:02:30]}  a6 {[%clk 0:01:13]} 18. Nxc8 {[%clk 0:02:27]}  Rxc8 {[%clk 0:01:09]} 19. Nd4 {[%clk 0:02:27]}  Ng6 {[%clk 0:00:59]} 20. Nf5 {[%clk 0:02:24]}  Re6 {[%clk 0:00:47]} 21. Rad1 {[%clk 0:02:24]}  Qa5 {[%clk 0:00:36]} 22. Rxd5 {[%clk 0:02:20]}  Qxa2 {[%clk 0:00:31]} 23. Rd2 {[%clk 0:02:13]}  Rce8 {[%clk 0:00:27]} 24. Nxg7 {[%clk 0:02:10]}  Kxg7 {[%clk 0:00:25]} 25. Bg3 {[%clk 0:02:07]}  Re1 {[%clk 0:00:23]} 26. Rd1 {[%clk 0:01:58]}  Rxf1+ {[%clk 0:00:18]} 27. Rxf1 {[%clk 0:01:55]}  Qxb2 {[%clk 0:00:17]} 28. Qc5 {[%clk 0:01:54]}  a5 {[%clk 0:00:17]} 29. Qxa5 {[%clk 0:01:53]}  b5 {[%clk 0:00:16]} 30. h4 {[%clk 0:01:49]}  Qd2 {[%clk 0:00:14]} 31. h5 {[%clk 0:01:48]}  Ne7 {[%clk 0:00:12]} 32. Qxb5 {[%clk 0:01:44]}  Qxc3 {[%clk 0:00:11]} 33. Be5+ {[%clk 0:01:44]}  Kf8 {[%clk 0:00:11]} 34. Bxc3 {[%clk 0:01:43]} 1-0


[Site "https://www.chess.com"]

[Event "Titled Tuesday Blitz October 11 Early 2022"]
[White "Haitin, Ilja"]
[Black "Wieczorek, Oskar"]
[WhiteFideId "4501764"]
[BlackFideId "1133950"]
[WhiteElo "2221"]
[BlackElo "2404"]
[Result "0-1"]
[Round "01"]
[TimeControl "180+1"]
[Date "2022.10.12"]
[WhiteClock "0:00:02"]
[BlackClock "0:01:56"]

1. e4 {[%clk 0:02:58]}  c5 {[%clk 0:02:59]} 2. d3 {[%clk 0:02:55]}  Nc6 {[%clk 0:02:59]} 3. f4 {[%clk 0:02:54]}  g6 {[%clk 0:03:00]} 4. Nf3 {[%clk 0:02:53]}  Bg7 {[%clk 0:03:00]} 5. g3 {[%clk 0:02:53]}  d6 {[%clk 0:02:59]} 6. Bg2 {[%clk 0:02:53]}  e5 {[%clk 0:03:00]} 7. O-O {[%clk 0:02:53]}  Nge7 {[%clk 0:03:01]} 8. f5 {[%clk 0:02:53]}  gxf5 {[%clk 0:03:01]} 9. Nh4 {[%clk 0:02:53]}  f4 {[%clk 0:02:57]} 10. gxf4 {[%clk 0:02:51]}  Ng6 {[%clk 0:02:56]} 11. Nf5 {[%clk 0:02:07]}  Bxf5 {[%clk 0:02:54]} 12. exf5 {[%clk 0:02:07]}  Nxf4 {[%clk 0:02:55]} 13. Bxf4 {[%clk 0:02:03]}  exf4 {[%clk 0:02:55]} 14. Nc3 {[%clk 0:01:57]}  Be5 {[%clk 0:02:46]} 15. Qh5 {[%clk 0:01:50]}  Rg8 {[%clk 0:02:41]} 16. Kh1 {[%clk 0:01:40]}  Qg5 {[%clk 0:02:40]} 17. Qxg5 {[%clk 0:01:06]}  Rxg5 {[%clk 0:02:38]} 18. Bxc6+ {[%clk 0:01:07]}  bxc6 {[%clk 0:02:39]} 19. Ne4 {[%clk 0:01:08]}  Rxf5 {[%clk 0:02:35]} 20. c3 {[%clk 0:01:01]}  Kd7 {[%clk 0:02:31]} 21. Rae1 {[%clk 0:00:44]}  Rg8 {[%clk 0:02:30]} 22. Re2 {[%clk 0:00:35]}  Rh5 {[%clk 0:02:23]} 23. Rxf4 {[%clk 0:00:22]}  f5 {[%clk 0:02:11]} 24. Nxc5+ {[%clk 0:00:12]}  Kc8 {[%clk 0:02:02]} 25. d4 {[%clk 0:00:10]}  Bxf4 {[%clk 0:02:01]} 26. Nd3 {[%clk 0:00:04]}  Rhg5 {[%clk 0:01:57]} 27. h4 {[%clk 0:00:02]}  Rg1# {[%clk 0:01:56]} 0-1


[Site "https://www.chess.com"]

[Event "Titled Tuesday Blitz October 11 Early 2022"]
[White "Harsh Suresh"]
[Black "Martin Carmona, Gaston Manuel"]
[WhiteFideId "45018464"]
[BlackFideId "22284567"]
[WhiteElo "2180"]
[BlackElo "2235"]
[Result "0-1"]
[Round "01"]
[TimeControl "180+1"]
[Date "2022.10.12"]
[WhiteClock "0:00:53"]
[BlackClock "0:00:43"]

1. e4 {[%clk 0:03:00]}  e5 {[%clk 0:02:57]} 2. Nf3 {[%clk 0:03:00]}  Nc6 {[%clk 0:02:58]} 3. Bc4 {[%clk 0:03:00]}  Nf6 {[%clk 0:02:57]} 4. O-O {[%clk 0:03:01]}  Nxe4 {[%clk 0:02:33]} 5. Qe2 {[%clk 0:03:00]}  d5 {[%clk 0:02:01]} 6. Bb5 {[%clk 0:03:00]}  Bd6 {[%clk 0:02:01]} 7. c4 {[%clk 0:03:00]}  Be6 {[%clk 0:01:49]} 8. d3 {[%clk 0:02:48]}  Nf6 {[%clk 0:01:47]} 9. Nxe5 {[%clk 0:02:46]}  O-O {[%clk 0:01:44]} 10. Bxc6 {[%clk 0:02:31]}  bxc6 {[%clk 0:01:45]} 11. b3 {[%clk 0:02:28]}  Re8 {[%clk 0:01:39]} 12. Bb2 {[%clk 0:02:27]}  Bf5 {[%clk 0:01:39]} 13. f4 {[%clk 0:02:19]}  dxc4 {[%clk 0:01:35]} 14. dxc4 {[%clk 0:02:16]}  Bc5+ {[%clk 0:01:33]} 15. Kh1 {[%clk 0:02:14]}  Ng4 {[%clk 0:01:20]} 16. h3 {[%clk 0:01:50]}  Nxe5 {[%clk 0:00:49]} 17. fxe5 {[%clk 0:01:50]}  Bd3 {[%clk 0:00:48]} 18. Qf3 {[%clk 0:01:22]}  Bxf1 {[%clk 0:00:48]} 19. Qxf1 {[%clk 0:01:23]}  Bd4 {[%clk 0:00:48]} 20. Nc3 {[%clk 0:01:23]}  Bxe5 {[%clk 0:00:47]} 21. Rd1 {[%clk 0:01:20]}  Qf6 {[%clk 0:00:47]} 22. Qxf6 {[%clk 0:01:04]}  Bxf6 {[%clk 0:00:48]} 23. Rd3 {[%clk 0:00:52]}  Rad8 {[%clk 0:00:44]} 24. Rf3 {[%clk 0:00:53]}  Re1+ {[%clk 0:00:42]} 25. Kh2 {[%clk 0:00:53]}  Be5+ {[%clk 0:00:43]} 26. g3 {[%clk 0:00:53]}  Rd2+ {[%clk 0:00:43]} 27. Rf2 {[%clk 0:00:53]}  Rxf2# {[%clk 0:00:43]} 0-1


[Site "https://www.chess.com"]

[Event "Titled Tuesday Blitz October 11 Early 2022"]
[White "Hirneise, Jens"]
[Black "Kravtsiv, Martyn"]
[WhiteFideId "24614734"]
[BlackFideId "14113147"]
[WhiteElo "2344"]
[BlackElo "2694"]
[Result "0-1"]
[Round "01"]
[TimeControl "180+1"]
[Date "2022.10.11"]
[WhiteClock "0:00:53"]
[BlackClock "0:00:08"]

1. e4 {[%clk 0:02:57]}  e5 {[%clk 0:02:58]} 2. Ne2 {[%clk 0:02:57]}  Nc6 {[%clk 0:02:58]} 3. Nbc3 {[%clk 0:02:51]}  Nf6 {[%clk 0:02:55]} 4. d4 {[%clk 0:02:51]}  exd4 {[%clk 0:02:49]} 5. Nxd4 {[%clk 0:02:51]}  Bb4 {[%clk 0:02:49]} 6. Nxc6 {[%clk 0:02:48]}  bxc6 {[%clk 0:02:50]} 7. Bd3 {[%clk 0:02:43]}  O-O {[%clk 0:02:50]} 8. O-O {[%clk 0:02:42]}  d5 {[%clk 0:02:50]} 9. exd5 {[%clk 0:02:41]}  cxd5 {[%clk 0:02:51]} 10. Bg5 {[%clk 0:02:39]}  c6 {[%clk 0:02:50]} 11. Qf3 {[%clk 0:02:33]}  Bd6 {[%clk 0:02:49]} 12. Bxf6 {[%clk 0:02:30]}  Qxf6 {[%clk 0:02:48]} 13. Qxf6 {[%clk 0:02:30]}  gxf6 {[%clk 0:02:49]} 14. Na4 {[%clk 0:02:26]}  c5 {[%clk 0:02:40]} 15. c4 {[%clk 0:02:26]}  d4 {[%clk 0:02:34]} 16. b3 {[%clk 0:02:21]}  Bd7 {[%clk 0:02:31]} 17. Nb2 {[%clk 0:02:21]}  Rfe8 {[%clk 0:02:31]} 18. Rfe1 {[%clk 0:02:20]}  Bc7 {[%clk 0:02:29]} 19. Be4 {[%clk 0:02:13]}  Ba5 {[%clk 0:02:22]} 20. Re2 {[%clk 0:02:00]}  Bc3 {[%clk 0:02:12]} 21. Rb1 {[%clk 0:01:53]}  f5 {[%clk 0:01:08]} 22. Bf3 {[%clk 0:01:48]}  Rxe2 {[%clk 0:01:05]} 23. Bxe2 {[%clk 0:01:49]}  Re8 {[%clk 0:01:04]} 24. Bd3 {[%clk 0:01:44]}  Bxb2 {[%clk 0:00:55]} 25. Rxb2 {[%clk 0:01:44]}  Re1+ {[%clk 0:00:56]} 26. Bf1 {[%clk 0:01:45]}  f4 {[%clk 0:00:52]} 27. f3 {[%clk 0:01:36]}  Bf5 {[%clk 0:00:52]} 28. Rd2 {[%clk 0:01:35]}  a5 {[%clk 0:00:42]} 29. Kf2 {[%clk 0:01:34]}  Ra1 {[%clk 0:00:41]} 30. Rb2 {[%clk 0:01:24]}  Bb1 {[%clk 0:00:28]} 31. Be2 {[%clk 0:01:12]}  d3 {[%clk 0:00:18]} 32. Bf1 {[%clk 0:01:05]}  Rxa2 {[%clk 0:00:16]} 33. Rxa2 {[%clk 0:01:05]}  Bxa2 {[%clk 0:00:17]} 34. Bxd3 {[%clk 0:01:06]}  Bxb3 {[%clk 0:00:18]} 35. Ke1 {[%clk 0:01:07]}  a4 {[%clk 0:00:14]} 36. Kd2 {[%clk 0:01:07]}  a3 {[%clk 0:00:12]} 37. Kc3 {[%clk 0:01:07]}  Ba4 {[%clk 0:00:12]} 38. Bb1 {[%clk 0:01:06]}  Kg7 {[%clk 0:00:11]} 39. Be4 {[%clk 0:01:04]}  h6 {[%clk 0:00:11]} 40. g3 {[%clk 0:01:03]}  fxg3 {[%clk 0:00:09]} 41. hxg3 {[%clk 0:01:04]}  Kf6 {[%clk 0:00:09]} 42. g4 {[%clk 0:01:05]}  Bd1 {[%clk 0:00:08]} 43. Bd5 {[%clk 0:01:00]}  Ke5 {[%clk 0:00:08]} 44. Bxf7 {[%clk 0:00:59]}  Bxf3 {[%clk 0:00:08]} 45. Kb3 {[%clk 0:00:55]}  Bxg4 {[%clk 0:00:08]} 46. Kxa3 {[%clk 0:00:56]}  h5 {[%clk 0:00:08]} 47. Kb2 {[%clk 0:00:55]}  Kd4 {[%clk 0:00:08]} 48. Bd5 {[%clk 0:00:53]}  Be2 {[%clk 0:00:07]} 49. Kc1 {[%clk 0:00:53]}  Bxc4 {[%clk 0:00:07]} 50. Bg2 {[%clk 0:00:51]}  h4 {[%clk 0:00:08]} 51. Bh3 {[%clk 0:00:52]}  Bd5 {[%clk 0:00:08]} 52. Kd2 {[%clk 0:00:52]}  c4 {[%clk 0:00:08]} 53. Bf5 {[%clk 0:00:53]}  Ke5 {[%clk 0:00:08]} 0-1


[Site "https://www.chess.com"]

[Event "Titled Tuesday Blitz October 11 Early 2022"]
[White "Huber, Benedikt"]
[Black "Weetik, Vjacheslav"]
[WhiteFideId "12923583"]
[BlackFideId "4153472"]
[WhiteElo "2199"]
[BlackElo "2469"]
[Result "0-1"]
[Round "01"]
[TimeControl "180+1"]
[Date "2022.10.12"]
[WhiteClock "0:00:17"]
[BlackClock "0:00:47"]

1. d4 {[%clk 0:02:59]}  Nf6 {[%clk 0:02:57]} 2. Nc3 {[%clk 0:02:59]}  d5 {[%clk 0:02:57]} 3. Bf4 {[%clk 0:02:59]}  c5 {[%clk 0:02:57]} 4. e4 {[%clk 0:02:59]}  e6 {[%clk 0:02:56]} 5. exd5 {[%clk 0:02:52]}  Nxd5 {[%clk 0:02:56]} 6. Nxd5 {[%clk 0:02:51]}  Qxd5 {[%clk 0:02:56]} 7. Nf3 {[%clk 0:02:46]}  Nc6 {[%clk 0:02:51]} 8. dxc5 {[%clk 0:02:27]}  Qxc5 {[%clk 0:02:49]} 9. Bd3 {[%clk 0:02:25]}  Be7 {[%clk 0:02:31]} 10. a3 {[%clk 0:02:18]}  e5 {[%clk 0:02:24]} 11. Be3 {[%clk 0:02:16]}  Qa5+ {[%clk 0:02:24]} 12. b4 {[%clk 0:02:11]}  Qc7 {[%clk 0:02:24]} 13. O-O {[%clk 0:02:00]}  O-O {[%clk 0:02:22]} 14. h3 {[%clk 0:01:54]}  Be6 {[%clk 0:02:08]} 15. Ng5 {[%clk 0:01:49]}  Bxg5 {[%clk 0:02:07]} 16. Bxg5 {[%clk 0:01:50]}  f6 {[%clk 0:02:01]} 17. Be3 {[%clk 0:01:49]}  Qf7 {[%clk 0:01:57]} 18. Qe2 {[%clk 0:01:48]}  Rfd8 {[%clk 0:01:53]} 19. Rfd1 {[%clk 0:01:47]}  Rd7 {[%clk 0:01:49]} 20. Bb5 {[%clk 0:01:46]}  Rad8 {[%clk 0:01:48]} 21. Bxc6 {[%clk 0:01:16]}  bxc6 {[%clk 0:01:47]} 22. Rxd7 {[%clk 0:01:15]}  Rxd7 {[%clk 0:01:46]} 23. Qa6 {[%clk 0:01:14]}  h5 {[%clk 0:01:40]} 24. Qxc6 {[%clk 0:01:11]}  Bd5 {[%clk 0:01:34]} 25. Qc8+ {[%clk 0:01:10]}  Kh7 {[%clk 0:01:34]} 26. c4 {[%clk 0:01:08]}  Bb7 {[%clk 0:01:19]} 27. Qc5 {[%clk 0:00:16]}  Qg6 {[%clk 0:01:00]} 28. f3 {[%clk 0:00:16]}  Bxf3 {[%clk 0:01:00]} 29. Ra2 {[%clk 0:00:17]}  Qg3 {[%clk 0:00:47]} 0-1


[Site "https://www.chess.com"]

[Event "Titled Tuesday Blitz October 11 Early 2022"]
[White "Jovic, Stanoje"]
[Black "Vokhidov, Shamsiddin"]
[WhiteFideId "905020"]
[BlackFideId "14204223"]
[WhiteElo "2238"]
[BlackElo "2619"]
[Result "0-1"]
[Round "01"]
[TimeControl "180+1"]
[Date "2022.10.11"]
[WhiteClock "0:00:10"]
[BlackClock "0:00:12"]

1. c4 {[%clk 0:03:00]}  e5 {[%clk 0:02:58]} 2. g3 {[%clk 0:03:00]}  Nf6 {[%clk 0:02:58]} 3. Bg2 {[%clk 0:03:00]}  c6 {[%clk 0:02:59]} 4. d4 {[%clk 0:03:00]}  exd4 {[%clk 0:02:59]} 5. Qxd4 {[%clk 0:03:00]}  Na6 {[%clk 0:02:59]} 6. Nf3 {[%clk 0:02:59]}  Bc5 {[%clk 0:02:58]} 7. Qe5+ {[%clk 0:02:57]}  Be7 {[%clk 0:02:58]} 8. O-O {[%clk 0:02:56]}  O-O {[%clk 0:02:57]} 9. Nc3 {[%clk 0:02:54]}  Re8 {[%clk 0:02:58]} 10. Rd1 {[%clk 0:02:46]}  Bb4 {[%clk 0:02:56]} 11. Qg5 {[%clk 0:02:40]}  Nc5 {[%clk 0:02:51]} 12. Nd4 {[%clk 0:02:33]}  h6 {[%clk 0:02:38]} 13. Qh4 {[%clk 0:02:28]}  d6 {[%clk 0:02:38]} 14. Bd2 {[%clk 0:02:18]}  Qe7 {[%clk 0:02:23]} 15. a3 {[%clk 0:02:17]}  Bxc3 {[%clk 0:02:22]} 16. Bxc3 {[%clk 0:02:17]}  Na4 {[%clk 0:02:19]} 17. Rac1 {[%clk 0:02:07]}  Ne4 {[%clk 0:02:17]} 18. Qxe7 {[%clk 0:02:02]}  Rxe7 {[%clk 0:02:18]} 19. Bxe4 {[%clk 0:01:57]}  Rxe4 {[%clk 0:02:18]} 20. f3 {[%clk 0:01:57]}  Re8 {[%clk 0:01:56]} 21. e4 {[%clk 0:01:53]}  Bd7 {[%clk 0:01:51]} 22. Ne2 {[%clk 0:01:49]}  Be6 {[%clk 0:01:49]} 23. b3 {[%clk 0:01:45]}  Nc5 {[%clk 0:01:36]} 24. Nd4 {[%clk 0:01:43]}  a5 {[%clk 0:01:33]} 25. Kf2 {[%clk 0:01:42]}  a4 {[%clk 0:01:30]} 26. b4 {[%clk 0:01:36]}  Nb3 {[%clk 0:01:30]} 27. Nxb3 {[%clk 0:01:36]}  axb3 {[%clk 0:01:31]} 28. Bb2 {[%clk 0:01:33]}  Red8 {[%clk 0:01:16]} 29. Rd3 {[%clk 0:01:19]}  b6 {[%clk 0:01:06]} 30. Ke3 {[%clk 0:01:14]}  c5 {[%clk 0:01:06]} 31. Rxb3 {[%clk 0:01:02]}  b5 {[%clk 0:01:05]} 32. Rd3 {[%clk 0:00:48]}  bxc4 {[%clk 0:00:54]} 33. Rd2 {[%clk 0:00:46]}  cxb4 {[%clk 0:00:53]} 34. axb4 {[%clk 0:00:46]}  d5 {[%clk 0:00:37]} 35. e5 {[%clk 0:00:43]}  Rdb8 {[%clk 0:00:33]} 36. Bc3 {[%clk 0:00:41]}  Ra3 {[%clk 0:00:32]} 37. Kd4 {[%clk 0:00:40]}  Kf8 {[%clk 0:00:31]} 38. Rcc2 {[%clk 0:00:39]}  Rba8 {[%clk 0:00:24]} 39. g4 {[%clk 0:00:37]}  Ke8 {[%clk 0:00:23]} 40. h4 {[%clk 0:00:36]}  Kd7 {[%clk 0:00:23]} 41. Rg2 {[%clk 0:00:33]}  Kc6 {[%clk 0:00:21]} 42. h5 {[%clk 0:00:31]}  R8a4 {[%clk 0:00:19]} 43. f4 {[%clk 0:00:30]}  Rxb4 {[%clk 0:00:15]} 44. f5 {[%clk 0:00:26]}  Bc8 {[%clk 0:00:15]} 45. f6 {[%clk 0:00:21]}  gxf6 {[%clk 0:00:15]} 46. exf6 {[%clk 0:00:21]}  Rb1 {[%clk 0:00:15]} 47. g5 {[%clk 0:00:19]}  Bf5 {[%clk 0:00:13]} 48. Rcd2 {[%clk 0:00:12]}  hxg5 {[%clk 0:00:13]} 49. Rxg5 {[%clk 0:00:10]}  Re1 {[%clk 0:00:12]} 0-1


[Site "https://www.chess.com"]